[Event "Netanya Open 2019"]
[Site "Netanya"]
[Date "2019.06.24"]
[Round "2.13"]
[White "Bilych, Olexiy"]
[Black "Kogan, Arthur"]
[Result "0-1"]
[ECO "B46"]
[WhiteElo "2203"]
[BlackElo "2535"]
[Annotator "ChessBase"]
[PlyCount "98"]
[EventDate "2019.06.23"]
[EventType "swiss"]
[EventCountry "ISR"]
[SourceTitle "playchess.com"]
[Source "ChessBase"]
[SourceQuality "1"]
[TimeControl "40/5400+30:1800+30"]

1. e4 {[%emt 0:00:00]} c5 {[%emt 0:00:00]} 2. Nf3 {[%emt 0:00:00]} e6 {[%emt 0:01:11]} 3. d4 {[%emt 0:00:00]} cxd4 {[%emt 0:00:03]} 4. Nxd4 {[%emt 0:00:00]} Nc6 {[%emt 0:00:36]} 5. Nc3 {[%emt 0:00:00]} a6 {[%emt 0:00:45]} 6. g3 {[%emt 0:00:43]} h5 {[%emt 0:01:58]} 7. Bg2 {[%emt 0:00:35]} h4 {[%emt 0:00:58]} 8. O-O {[%emt 0:00:10]} hxg3 {[%emt 0:03:41]} 9. hxg3 {[%emt 0:00:05]} Nge7 {[%emt 0:04:50]} 10. Re1 {[%emt 0:16:11]} Nxd4 {[%emt 0:08:34]} 11. Qxd4 {[%emt 0:00:05]} Nc6 {[%emt 0:00:06]} 12. Qd1 {[%emt 0:01:11]} d6 {[%emt 0:01:49]} 13. Be3 {[%emt 0:02:05]} Ne5 {[%emt 0:05:56]} 14. b3 {[%emt 0:08:51]} Bd7 {[%emt 0:10:31]} 15. f4 {[%emt 0:10:22]} Ng6 {[%emt 0:03:51]} 16. Ne2 {[%emt 0:02:07]} b5 {[%emt 0:02:57]} 17. c4 {[%emt 0:09:25]} bxc4 {[%emt 0:01:48]} 18. bxc4 {[%emt 0:00:07]} Rc8 {[%emt 0:05:27]} 19. Qd3 {[%emt 0:02:57]} Be7 {[%emt 0:04:11]} 20. Rad1 {[%emt 0:00:53]} Ba4 {[%emt 0:03:05]} 21. Rd2 {[%emt 0:04:47]} Qa5 {[%emt 0:02:44]} 22. Rb1 {[%emt 0:03:34]} Nf8 {[%emt 0:08:30]} 23. Bb6 {[%emt 0:08:10]} Qh5 {[%emt 0:01:10]} 24. c5 {[%emt 0:00:10]} Nd7 {[%emt 0:10:54]} 25. Qxa6 {[%emt 0:04:02]} Nxb6 {[%emt 0:01:49]} 26. cxb6 {[%emt 0:00:12]} Bd7 {[%emt 0:00:49]} 27. b7 {[%emt 0:02:58]} Rb8 {[%emt 0:00:20]} 28. Rc2 {[%emt 0:00:13]} O-O {[%emt 0:01:04]} 29. Rc7 {[%emt 0:00:58]} Rfd8 {[%emt 0:00:26]} 30. Kf2 {[%emt 0:01:59]} f5 {[%emt 0:05:05]} 31. e5 {[%emt 0:00:42]} dxe5 {[%emt 0:00:35]} 32. Rd1 {[%emt 0:01:36]} Qf7 {[%emt 0:02:28]} 33. Kf1 {[%emt 0:02:01]} Bb5 {[%emt 0:02:11]} 34. Rxd8+ {[%emt 0:04:03]} Bxd8 {[%emt 0:00:41]} 35. Qxb5 {[%emt 0:01:33]} Bxc7 {[%emt 0:00:07]} 36. fxe5 {[%emt 0:00:08]} Rd8 {[%emt 0:02:03]} 37. Bc6 {[%emt 0:04:04]} Bb8 {[%emt 0:01:56]} 38. Ke1 {[%emt 0:01:47]} Qe7 {[%emt 0:01:24]} 39. a4 {[%emt 0:02:07]} Ba7 {[%emt 0:02:05]} 40. Qa5 {[%emt 0:01:58]} Be3 {[%emt 0:01:22]} 41. Qb5 {[%emt 0:30:34]} Ba7 {[%emt 0:05:48]} 42. Qa5 {[%emt 0:00:00]} Bb8 {[%emt 0:02:54]} 43. Qc3 {[%emt 0:00:00]} g5 {[%emt 0:04:27]} 44. a5 {[%emt 0:00:00]} Ba7 {[%emt 0:04:41]} 45. a6 {[%emt 0:00:00]} Qc7 {[%emt 0:02:10]} 46. Qc1 {[%emt 0:00:00]} f4 {[%emt 0:01:15]} 47. Qc2 {[%emt 0:00:00]} Kg7 {[%emt 0:01:32]} 48. Kf1 {[%emt 0:00:00]} Qb6 {[%emt 0:02:07]} 49. Kg2 {[%emt 0:00:00]} g4 {[%emt 0:01:33]} 0-1

[Event "Netanya Open 2019"]
[Site "Netanya"]
[Date "2019.06.24"]
[Round "2.14"]
[White "Svetushkin, Dmitry"]
[Black "Lukin, Elisha"]
[Result "1-0"]
[ECO "C19"]
[WhiteElo "2532"]
[BlackElo "2196"]
[Annotator "ChessBase"]
[PlyCount "76"]
[EventDate "2019.06.23"]
[EventType "swiss"]
[EventCountry "ISR"]
[SourceTitle "playchess.com"]
[Source "ChessBase"]
[SourceQuality "1"]
[TimeControl "40/5400+30:1800+30"]

1. e4 {[%emt 0:00:00]} e6 {[%emt 0:00:00]} 2. d4 {[%emt 0:00:01]} d5 {[%emt 0:00:00]} 3. Nc3 {[%emt 0:00:06]} Bb4 {[%emt 0:00:00]} 4. e5 {[%emt 0:00:06]} c5 {[%emt 0:00:00]} 5. a3 {[%emt 0:00:17]} Bxc3+ {[%emt 0:00:00]} 6. bxc3 {[%emt 0:00:05]} Ne7 {[%emt 0:00:05]} 7. Nf3 {[%emt 0:00:33]} Bd7 {[%emt 0:00:05]} 8. a4 {[%emt 0:02:06]} Nbc6 {[%emt 0:00:29]} 9. Ba3 {[%emt 0:06:06]} cxd4 {[%emt 0:01:06]} 10. cxd4 {[%emt 0:00:22]} Qa5+ {[%emt 0:00:24]} 11. Qd2 {[%emt 0:00:43]} Qxd2+ {[%emt 0:01:24]} 12. Kxd2 {[%emt 0:00:09]} Nf5 {[%emt 0:03:00]} 13. Bb2 {[%emt 0:11:50]} Na5 {[%emt 0:02:51]} 14. Bd3 {[%emt 0:01:11]} Nc4+ {[%emt 0:01:07]} 15. Bxc4 {[%emt 0:02:28]} dxc4 {[%emt 0:00:09]} 16. Kc3 {[%emt 0:00:05]} Rc8 {[%emt 0:01:54]} 17. Ba3 {[%emt 0:00:35]} Bc6 {[%emt 0:52:45]} 18. a5 {[%emt 0:03:09]} h5 {[%emt 0:07:17]} 19. Rhg1 {[%emt 0:01:45]} h4 {[%emt 0:05:09]} 20. Nd2 {[%emt 0:03:12]} h3 {[%emt 0:05:02]} 21. g3 {[%emt 0:01:08]} b5 {[%emt 0:01:18]} 22. axb6 {[%emt 0:01:50]} axb6 {[%emt 0:01:12]} 23. Rgb1 {[%emt 0:02:59]} b5 {[%emt 0:00:24]} 24. Bc5 {[%emt 0:00:36]} Kd7 {[%emt 0:04:28]} 25. Ra7+ {[%emt 0:00:20]} Rc7 {[%emt 0:00:21]} 26. Rba1 {[%emt 0:00:17]} Rhc8 {[%emt 0:03:43]} 27. R7a3 {[%emt 0:01:38]} Nh6 {[%emt 0:01:14]} 28. f3 {[%emt 0:04:02]} Nf5 {[%emt 0:00:03]} 29. Kb4 {[%emt 0:00:05]} Bd5 {[%emt 0:03:29]} 30. Ne4 {[%emt 0:00:48]} Bxe4 {[%emt 0:03:51]} 31. fxe4 {[%emt 0:01:12]} Nh6 {[%emt 0:00:40]} 32. Rf1 {[%emt 0:08:25]} Ke8 {[%emt 0:00:01]} 33. g4 {[%emt 0:01:58]} Nxg4 {[%emt 0:00:40]} 34. Bd6 {[%emt 0:01:39]} Rc6 {[%emt 0:02:17]} 35. Rg3 {[%emt 0:00:33]} Rxd6 {[%emt 0:00:26]} 36. exd6 {[%emt 0:00:18]} Nf6 {[%emt 0:00:01]} 37. Rxg7 {[%emt 0:01:46]} Kf8 {[%emt 0:00:06]} 38. Rxf7+ {[%emt 0:00:22]} Kxf7 {[%emt 0:00:03]} 1-0

[Event "Netanya Open 2019"]
[Site "Netanya"]
[Date "2019.06.24"]
[Round "2.15"]
[White "Parligras, Cosmin"]
[Black "Baron, Tal"]
[Result "1/2-1/2"]
[ECO "A25"]
[WhiteElo "2198"]
[BlackElo "2524"]
[Annotator "ChessBase"]
[PlyCount "107"]
[EventDate "2019.06.23"]
[EventType "swiss"]
[EventCountry "ISR"]
[SourceTitle "playchess.com"]
[Source "ChessBase"]
[SourceQuality "1"]
[TimeControl "40/5400+30:1800+30"]

1. c4 {[%emt 0:00:00]} e5 {[%emt 0:42:57]} 2. Nc3 {[%emt 0:00:55]} Nc6 {[%emt 0:00:39]} 3. g3 {[%emt 0:00:27]} Bc5 {[%emt 0:00:02]} 4. Bg2 {[%emt 0:02:08]} a6 {[%emt 0:00:13]} 5. e3 {[%emt 0:03:05]} d6 {[%emt 0:00:24]} 6. Nge2 {[%emt 0:00:35]} Ba7 {[%emt 0:00:02]} 7. d4 {[%emt 0:00:58]} h5 {[%emt 0:02:54]} 8. h3 {[%emt 0:05:07]} f5 {[%emt 0:04:18]} 9. Bxc6+ {[%emt 0:02:23]} bxc6 {[%emt 0:00:06]} 10. dxe5 {[%emt 0:00:08]} dxe5 {[%emt 0:00:44]} 11. Qxd8+ {[%emt 0:00:08]} Kxd8 {[%emt 0:00:04]} 12. Na4 {[%emt 0:08:29]} c5 {[%emt 0:10:30]} 13. Nec3 {[%emt 0:06:44]} Bb7 {[%emt 0:01:47]} 14. e4 {[%emt 0:05:36]} Nf6 {[%emt 0:01:44]} 15. Bg5 {[%emt 0:01:07]} Ke8 {[%emt 0:02:24]} 16. Bxf6 {[%emt 0:10:22]} gxf6 {[%emt 0:00:02]} 17. Nd5 {[%emt 0:00:33]} Rd8 {[%emt 0:03:37]} 18. f3 {[%emt 0:04:25]} Kf7 {[%emt 0:01:13]} 19. Rd1 {[%emt 0:02:12]} c6 {[%emt 0:04:53]} 20. Ndc3 {[%emt 0:01:38]} Rd4 {[%emt 0:01:29]} 21. exf5 {[%emt 0:06:08]} Bc8 {[%emt 0:00:06]} 22. g4 {[%emt 0:00:46]} hxg4 {[%emt 0:02:27]} 23. fxg4 {[%emt 0:00:07]} Rxc4 {[%emt 0:00:13]} 24. Rd6 {[%emt 0:04:12]} Bb8 {[%emt 0:02:01]} 25. Rd2 {[%emt 0:00:31]} Rxg4 {[%emt 0:01:21]} 26. hxg4 {[%emt 0:00:06]} Rxh1+ {[%emt 0:00:04]} 27. Kf2 {[%emt 0:01:32]} Rh2+ {[%emt 0:00:32]} 28. Ke3 {[%emt 0:00:29]} Rh3+ {[%emt 0:00:13]} 29. Kf2 {[%emt 0:00:06]} Rh2+ {[%emt 0:01:53]} 30. Ke3 {[%emt 0:00:07]} Rh3+ {[%emt 0:00:01]} 31. Kf2 {[%emt 0:00:08]} Ke7 {[%emt 0:00:25]} 32. Kg2 {[%emt 0:01:02]} Rh4 {[%emt 0:00:21]} 33. Kg3 {[%emt 0:00:10]} Rh8 {[%emt 0:01:06]} 34. Ne4 {[%emt 0:00:41]} c4 {[%emt 0:00:19]} 35. Nb6 {[%emt 0:03:58]} Bc7 {[%emt 0:03:07]} 36. Nxc4 {[%emt 0:01:46]} Rg8 {[%emt 0:01:21]} 37. Ncd6 {[%emt 0:05:30]} Bd7 {[%emt 0:00:42]} 38. Nxf6 {[%emt 0:02:36]} Rh8 {[%emt 0:08:26]} 39. Nfe4 {[%emt 0:02:29]} Rh1 {[%emt 0:00:59]} 40. g5 {[%emt 0:08:34]} Rg1+ {[%emt 0:00:26]} 41. Kh2 {[%emt 0:31:45]} Rg4 {[%emt 0:31:28]} 42. f6+ {[%emt 0:05:26]} Kf8 {[%emt 0:00:08]} 43. Nc5 {[%emt 0:02:59]} Rh4+ {[%emt 0:00:19]} 44. Kg3 {[%emt 0:00:40]} Rh3+ {[%emt 0:00:02]} 45. Kg2 {[%emt 0:00:26]} Bg4 {[%emt 0:00:02]} 46. g6 {[%emt 0:00:00]} Rh6 {[%emt 0:00:00]} 47. g7+ {[%emt 0:00:00]} Kg8 {[%emt 0:00:00]} 48. Nce4 {[%emt 0:00:00]} Bh3+ {[%emt 0:00:00]} 49. Kg3 {[%emt 0:00:00]} Be6 {[%emt 0:00:00]} 50. b4 {[%emt 0:00:00]} Rg6+ {[%emt 0:00:00]} 51. Kh2 {[%emt 0:00:00]} Rh6+ {[%emt 0:00:00]} 52. Kg3 {[%emt 0:00:00]} Rg6+ {[%emt 0:00:00]} 53. Kh2 {[%emt 0:00:00]} Rh6+ {[%emt 0:00:00]} 54. Kg3 {[%emt 0:00:00]} 1/2-1/2

[Event "Netanya Open 2019"]
[Site "Netanya"]
[Date "2019.06.24"]
[Round "2.16"]
[White "Rechlis, Gad"]
[Black "Musyuk, Lior"]
[Result "0-1"]
[ECO "A04"]
[WhiteElo "2506"]
[BlackElo "2190"]
[Annotator "ChessBase"]
[PlyCount "60"]
[EventDate "2019.06.23"]
[EventType "swiss"]
[EventCountry "ISR"]
[SourceTitle "playchess.com"]
[Source "ChessBase"]
[SourceQuality "1"]
[TimeControl "40/5400+30:1800+30"]

1. Nf3 {[%emt 0:12:39]} c5 {[%emt 0:00:00]} 2. g3 {[%emt 0:00:43]} Nc6 {[%emt 0:00:00]} 3. Bg2 {[%emt 0:00:44]} e5 {[%emt 0:00:03]} 4. O-O {[%emt 0:01:49]} g6 {[%emt 0:00:45]} 5. d4 {[%emt 0:05:58]} cxd4 {[%emt 0:08:03]} 6. e3 {[%emt 0:14:07]} dxe3 {[%emt 0:07:06]} 7. Bxe3 {[%emt 0:00:02]} Bg7 {[%emt 0:05:03]} 8. Re1 {[%emt 0:24:56]} Nge7 {[%emt 0:05:35]} 9. Bc5 {[%emt 0:00:40]} d5 {[%emt 0:02:41]} 10. c4 {[%emt 0:18:34]} d4 {[%emt 0:08:43]} 11. Nxe5 {[%emt 0:01:45]} Nxe5 {[%emt 0:04:04]} 12. f4 {[%emt 0:00:21]} Bg4 {[%emt 0:03:43]} 13. Qa4+ {[%emt 0:00:39]} Bd7 {[%emt 0:03:27]} 14. Qb3 {[%emt 0:13:07]} Rc8 {[%emt 0:04:10]} 15. Bd6 {[%emt 0:00:01]} Be6 {[%emt 0:01:08]} 16. Bxe5 {[%emt 0:00:18]} Bxe5 {[%emt 0:03:17]} 17. Rxe5 {[%emt 0:00:01]} Rxc4 {[%emt 0:01:19]} 18. Qb5+ {[%emt 0:01:13]} Qd7 {[%emt 0:02:58]} 19. Na3 {[%emt 0:00:33]} Rc7 {[%emt 0:01:36]} 20. Rd1 {[%emt 0:00:48]} O-O {[%emt 0:01:16]} 21. b3 {[%emt 0:00:11]} a6 {[%emt 0:01:33]} 22. Qb6 {[%emt 0:00:58]} d3 {[%emt 0:06:09]} 23. Qe3 {[%emt 0:00:30]} Rd8 {[%emt 0:01:27]} 24. Bf1 {[%emt 0:00:39]} d2 {[%emt 0:04:44]} 25. Nb1 {[%emt 0:00:01]} Rc2 {[%emt 0:02:07]} 26. Qf2 {[%emt 0:00:41]} Rxa2 {[%emt 0:06:23]} 27. Re3 {[%emt 0:00:20]} Qd4 {[%emt 0:02:26]} 28. Nc3 {[%emt 0:00:15]} Rc2 {[%emt 0:01:47]} 29. Ne2 {[%emt 0:00:58]} Qc5 {[%emt 0:01:20]} 30. Bg2 {[%emt 0:00:40]} Rc1 {[%emt 0:00:41]} 0-1

[Event "Netanya Open 2019"]
[Site "Netanya"]
[Date "2019.06.24"]
[Round "2.17"]
[White "Karp, Michael"]
[Black "Zanan, Evgeny"]
[Result "1/2-1/2"]
[ECO "E62"]
[WhiteElo "2194"]
[BlackElo "2505"]
[Annotator "ChessBase"]
[PlyCount "96"]
[EventDate "2019.06.23"]
[EventType "swiss"]
[EventCountry "ISR"]
[SourceTitle "playchess.com"]
[Source "ChessBase"]
[SourceQuality "1"]
[TimeControl "40/5400+30:1800+30"]

1. d4 {[%emt 0:00:00]} Nf6 {[%emt 0:00:00]} 2. Nf3 {[%emt 0:01:58]} g6 {[%emt 0:00:00]} 3. g3 {[%emt 0:00:28]} Bg7 {[%emt 0:00:00]} 4. Bg2 {[%emt 0:00:17]} O-O {[%emt 0:00:05]} 5. c4 {[%emt 0:01:05]} d6 {[%emt 0:00:08]} 6. O-O {[%emt 0:00:21]} Nc6 {[%emt 0:00:06]} 7. Nc3 {[%emt 0:00:52]} Bf5 {[%emt 0:00:32]} 8. Bg5 {[%emt 0:02:31]} Ne4 {[%emt 0:11:28]} 9. Nxe4 {[%emt 0:01:08]} Bxe4 {[%emt 0:00:07]} 10. d5 {[%emt 0:02:19]} Na5 {[%emt 0:04:46]} 11. b3 {[%emt 0:04:11]} h6 {[%emt 0:11:09]} 12. Bd2 {[%emt 0:22:25]} c6 {[%emt 0:02:43]} 13. Qe1 {[%emt 0:12:07]} b6 {[%emt 0:03:15]} 14. dxc6 {[%emt 0:11:30]} Nxc6 {[%emt 0:02:15]} 15. Bc3 {[%emt 0:02:00]} e5 {[%emt 0:04:31]} 16. Qd2 {[%emt 0:01:28]} Qc7 {[%emt 0:13:51]} 17. Nh4 {[%emt 0:04:19]} Bxg2 {[%emt 0:01:13]} 18. Nxg2 {[%emt 0:00:38]} f5 {[%emt 0:00:05]} 19. f4 {[%emt 0:05:30]} Rae8 {[%emt 0:04:30]} 20. Rad1 {[%emt 0:03:55]} Re6 {[%emt 0:01:49]} 21. Ne3 {[%emt 0:05:06]} Rfe8 {[%emt 0:02:36]} 22. Nd5 {[%emt 0:01:36]} Qf7 {[%emt 0:01:05]} 23. e3 {[%emt 0:06:15]} g5 {[%emt 0:03:01]} 24. fxg5 {[%emt 0:01:14]} hxg5 {[%emt 0:01:19]} 25. Rf2 {[%emt 0:00:42]} Rg6 {[%emt 0:20:24]} 26. Rdf1 {[%emt 0:02:50]} f4 {[%emt 0:00:06]} 27. exf4 {[%emt 0:02:38]} gxf4 {[%emt 0:01:32]} 28. Kh1 {[%emt 0:00:59]} Ne7 {[%emt 0:05:52]} 29. gxf4 {[%emt 0:00:48]} Nxd5 {[%emt 0:00:13]} 30. fxe5 {[%emt 0:01:06]} Nf4 {[%emt 0:04:09]} 31. Rxf4 {[%emt 0:00:57]} Qb7+ {[%emt 0:00:06]} 32. Qd5+ {[%emt 0:00:15]} Qxd5+ {[%emt 0:00:04]} 33. cxd5 {[%emt 0:00:05]} dxe5 {[%emt 0:01:21]} 34. Re4 {[%emt 0:01:21]} Rd6 {[%emt 0:00:50]} 35. Rd1 {[%emt 0:00:30]} a5 {[%emt 0:00:30]} 36. a4 {[%emt 0:00:45]} Kf7 {[%emt 0:01:42]} 37. Bb2 {[%emt 0:00:22]} Red8 {[%emt 0:00:27]} 38. Bxe5 {[%emt 0:01:01]} Rxd5 {[%emt 0:00:09]} 39. Rxd5 {[%emt 0:00:59]} Rxd5 {[%emt 0:00:05]} 40. Bxg7 {[%emt 0:00:16]} Kxg7 {[%emt 0:00:16]} 41. Re6 {[%emt 0:30:52]} b5 {[%emt 0:31:10]} 42. Ra6 {[%emt 0:00:00]} b4 {[%emt 0:00:00]} 43. Kg2 {[%emt 0:00:00]} Rd3 {[%emt 0:00:00]} 44. Rxa5 {[%emt 0:00:00]} Rxb3 {[%emt 0:00:00]} 45. Rb5 {[%emt 0:00:00]} Rb1 {[%emt 0:00:00]} 46. a5 {[%emt 0:00:00]} b3 {[%emt 0:00:00]} 47. a6 {[%emt 0:00:00]} Ra1 {[%emt 0:00:00]} 48. Rxb3 {[%emt 0:00:00]} Rxa6 {[%emt 0:00:00]} 1/2-1/2

[Event "Netanya Open 2019"]
[Site "Netanya"]
[Date "2019.06.24"]
[Round "2.18"]
[White "Dvoirys, Semen I."]
[Black "Streltsov, Alexey"]
[Result "1/2-1/2"]
[ECO "B42"]
[WhiteElo "2502"]
[BlackElo "2177"]
[Annotator "ChessBase"]
[PlyCount "71"]
[EventDate "2019.06.23"]
[EventType "swiss"]
[EventCountry "ISR"]
[SourceTitle "playchess.com"]
[Source "ChessBase"]
[SourceQuality "1"]
[TimeControl "40/5400+30:1800+30"]

1. e4 {[%emt 0:00:00]} c5 {[%emt 0:00:00]} 2. Nf3 {[%emt 0:00:00]} e6 {[%emt 0:00:00]} 3. d4 {[%emt 0:00:00]} cxd4 {[%emt 0:00:00]} 4. Nxd4 {[%emt 0:00:00]} a6 {[%emt 0:00:00]} 5. Bd3 {[%emt 0:00:30]} Bc5 {[%emt 0:00:03]} 6. c3 {[%emt 0:02:05]} Nc6 {[%emt 0:10:06]} 7. Nxc6 {[%emt 0:00:21]} dxc6 {[%emt 0:00:07]} 8. Qe2 {[%emt 0:13:43]} e5 {[%emt 0:00:51]} 9. Bc4 {[%emt 0:13:54]} Qe7 {[%emt 0:30:44]} 10. a4 {[%emt 0:10:21]} a5 {[%emt 0:02:32]} 11. Be3 {[%emt 0:00:50]} Bxe3 {[%emt 0:07:27]} 12. Qxe3 {[%emt 0:00:02]} Nf6 {[%emt 0:00:09]} 13. Nd2 {[%emt 0:00:15]} O-O {[%emt 0:00:47]} 14. O-O {[%emt 0:00:19]} Be6 {[%emt 0:02:20]} 15. Rfd1 {[%emt 0:14:58]} Rfd8 {[%emt 0:00:39]} 16. b3 {[%emt 0:00:16]} h6 {[%emt 0:16:07]} 17. f3 {[%emt 0:08:23]} Bxc4 {[%emt 0:00:14]} 18. Nxc4 {[%emt 0:00:02]} Rxd1+ {[%emt 0:00:07]} 19. Rxd1 {[%emt 0:00:11]} b5 {[%emt 0:00:01]} 20. axb5 {[%emt 0:00:07]} cxb5 {[%emt 0:00:05]} 21. Nb6 {[%emt 0:00:03]} Qa7 {[%emt 0:04:42]} 22. Kf2 {[%emt 0:01:31]} Rb8 {[%emt 0:00:12]} 23. Nd7 {[%emt 0:07:03]} Qxe3+ {[%emt 0:00:07]} 24. Kxe3 {[%emt 0:00:04]} Nxd7 {[%emt 0:00:10]} 25. Rxd7 {[%emt 0:00:05]} Ra8 {[%emt 0:03:27]} 26. Rb7 {[%emt 0:03:01]} a4 {[%emt 0:01:12]} 27. bxa4 {[%emt 0:00:16]} bxa4 {[%emt 0:00:03]} 28. Kd3 {[%emt 0:00:18]} g6 {[%emt 0:11:52]} 29. Kc2 {[%emt 0:02:21]} f5 {[%emt 0:01:43]} 30. exf5 {[%emt 0:11:40]} a3 {[%emt 0:01:10]} 31. Kb1 {[%emt 0:01:05]} gxf5 {[%emt 0:00:03]} 32. Ka2 {[%emt 0:01:31]} e4 {[%emt 0:00:09]} 33. Re7 {[%emt 0:05:25]} Rc8 {[%emt 0:01:07]} 34. fxe4 {[%emt 0:00:14]} fxe4 {[%emt 0:01:29]} 35. Rxe4 {[%emt 0:02:19]} Rxc3 {[%emt 0:00:05]} 36. g3 {[%emt 0:00:53]} 1/2-1/2

[Event "Netanya Open 2019"]
[Site "Netanya"]
[Date "2019.06.24"]
[Round "2.19"]
[White "Lahav, Michal"]
[Black "Zoler, Dan"]
[Result "1/2-1/2"]
[ECO "C47"]
[WhiteElo "2178"]
[BlackElo "2499"]
[Annotator "ChessBase"]
[PlyCount "153"]
[EventDate "2019.06.23"]
[EventType "swiss"]
[EventCountry "ISR"]
[SourceTitle "playchess.com"]
[Source "ChessBase"]
[SourceQuality "1"]
[TimeControl "40/5400+30:1800+30"]

1. e4 {[%emt 0:00:00]} e5 {[%emt 0:22:02]} 2. Nf3 {[%emt 0:00:00]} Nc6 {[%emt 0:00:06]} 3. d4 {[%emt 0:00:02]} exd4 {[%emt 0:00:12]} 4. Nxd4 {[%emt 0:00:03]} Nf6 {[%emt 0:00:14]} 5. Nc3 {[%emt 0:00:13]} Bb4 {[%emt 0:00:30]} 6. Nxc6 {[%emt 0:00:04]} bxc6 {[%emt 0:00:09]} 7. Bd3 {[%emt 0:00:07]} O-O {[%emt 0:00:17]} 8. O-O {[%emt 0:00:06]} d5 {[%emt 0:00:13]} 9. exd5 {[%emt 0:00:03]} cxd5 {[%emt 0:00:06]} 10. h3 {[%emt 0:00:17]} c6 {[%emt 0:01:07]} 11. Qf3 {[%emt 0:00:30]} Rb8 {[%emt 0:15:48]} 12. Bf4 {[%emt 0:01:03]} Bd6 {[%emt 0:01:18]} 13. b3 {[%emt 0:00:26]} Rb4 {[%emt 0:04:58]} 14. Bxd6 {[%emt 0:01:46]} Qxd6 {[%emt 0:00:04]} 15. Ne2 {[%emt 0:00:48]} c5 {[%emt 0:02:40]} 16. Rad1 {[%emt 0:04:02]} Bb7 {[%emt 0:04:13]} 17. Rfe1 {[%emt 0:10:22]} a5 {[%emt 0:04:40]} 18. Qg3 {[%emt 0:05:17]} Qxg3 {[%emt 0:12:26]} 19. Nxg3 {[%emt 0:00:33]} g6 {[%emt 0:04:27]} 20. Re7 {[%emt 0:10:31]} Rc8 {[%emt 0:02:42]} 21. Rxb7 {[%emt 0:09:47]} Rxb7 {[%emt 0:00:06]} 22. Ba6 {[%emt 0:00:09]} Rbc7 {[%emt 0:02:52]} 23. Bxc8 {[%emt 0:00:13]} Rxc8 {[%emt 0:00:02]} 24. Ne2 {[%emt 0:00:48]} Kf8 {[%emt 0:03:48]} 25. Nf4 {[%emt 0:04:06]} Rd8 {[%emt 0:00:43]} 26. Nd3 {[%emt 0:01:57]} Ne4 {[%emt 0:00:11]} 27. Re1 {[%emt 0:02:28]} Rc8 {[%emt 0:02:48]} 28. Ne5 {[%emt 0:20:37]} Nc3 {[%emt 0:02:19]} 29. Nd7+ {[%emt 0:01:50]} Kg7 {[%emt 0:00:07]} 30. Re5 {[%emt 0:00:09]} c4 {[%emt 0:07:25]} 31. Nb6 {[%emt 0:01:32]} cxb3 {[%emt 0:00:58]} 32. axb3 {[%emt 0:04:02]} Rc6 {[%emt 0:01:35]} 33. Nd7 {[%emt 0:00:56]} Rc7 {[%emt 0:01:09]} 34. Nb6 {[%emt 0:00:29]} Rb7 {[%emt 0:02:11]} 35. Nc8 {[%emt 0:03:09]} Kf6 {[%emt 0:01:53]} 36. f4 {[%emt 0:02:18]} Rb4 {[%emt 0:00:03]} 37. g3 {[%emt 0:02:52]} Rd4 {[%emt 0:01:30]} 38. Nd6 {[%emt 0:01:33]} Kg7 {[%emt 0:00:10]} 39. Re7 {[%emt 0:00:48]} Rd2 {[%emt 0:00:22]} 40. Rxf7+ {[%emt 0:05:15]} Kg8 {[%emt 0:00:03]} 41. Rd7 {[%emt 0:32:19]} Rxc2 {[%emt 0:30:35]} 42. Ne8 {[%emt 0:00:34]} Ne4 {[%emt 0:00:00]} 43. Rxd5 {[%emt 0:00:00]} Nxg3 {[%emt 0:00:00]} 44. Rxa5 {[%emt 0:00:00]} Ne2+ {[%emt 0:00:00]} 45. Kh1 {[%emt 0:00:00]} Nxf4 {[%emt 0:00:00]} 46. Nf6+ {[%emt 0:00:00]} Kg7 {[%emt 0:00:00]} 47. Ng4 {[%emt 0:00:00]} Rc7 {[%emt 0:00:00]} 48. Kh2 {[%emt 0:00:00]} h5 {[%emt 0:00:00]} 49. Nf2 {[%emt 0:00:00]} Rc2 {[%emt 0:00:00]} 50. Kg3 {[%emt 0:00:00]} Ne2+ {[%emt 0:00:00]} 51. Kg2 {[%emt 0:00:24]} Nc1 {[%emt 0:00:00]} 52. Ra7+ {[%emt 0:00:40]} Kh6 {[%emt 0:00:00]} 53. Rb7 {[%emt 0:04:16]} Nd3 {[%emt 0:00:00]} 54. Rf7 {[%emt 0:00:02]} g5 {[%emt 0:00:00]} 55. Kg1 {[%emt 0:03:14]} Nf4 {[%emt 0:00:00]} 56. h4 {[%emt 0:02:43]} Kg6 {[%emt 0:00:00]} 57. Rf8 {[%emt 0:00:03]} Ne2+ {[%emt 0:00:00]} 58. Kg2 {[%emt 0:00:27]} g4 {[%emt 0:01:15]} 59. Rg8+ {[%emt 0:00:58]} Kf7 {[%emt 0:04:30]} 60. Rg5 {[%emt 0:00:43]} Nf4+ {[%emt 0:02:46]} 61. Kg3 {[%emt 0:00:27]} Ne2+ {[%emt 0:00:14]} 62. Kg2 {[%emt 0:00:01]} Rc3 {[%emt 0:00:03]} 63. Nxg4 {[%emt 0:01:51]} Nf4+ {[%emt 0:00:21]} 64. Kh1 {[%emt 0:00:37]} Rc1+ {[%emt 0:03:15]} 65. Kh2 {[%emt 0:00:02]} Rc2+ {[%emt 0:00:20]} 66. Kh1 {[%emt 0:00:12]} Rc1+ {[%emt 0:00:28]} 67. Kh2 {[%emt 0:00:01]} Rc2+ {[%emt 0:00:04]} 68. Kh1 {[%emt 0:00:02]} hxg4 {[%emt 0:00:28]} 69. Rf5+ {[%emt 0:00:01]} Kg6 {[%emt 0:00:05]} 70. Rxf4 {[%emt 0:00:09]} Kh5 {[%emt 0:00:02]} 71. Rf1 {[%emt 0:01:34]} Kxh4 {[%emt 0:00:09]} 72. Rb1 {[%emt 0:00:10]} Kh3 {[%emt 0:00:21]} 73. b4 {[%emt 0:00:26]} g3 {[%emt 0:00:08]} 74. b5 {[%emt 0:00:29]} Rh2+ {[%emt 0:00:06]} 75. Kg1 {[%emt 0:00:02]} Rg2+ {[%emt 0:00:03]} 76. Kh1 {[%emt 0:00:04]} Rh2+ {[%emt 0:00:03]} 77. Kg1 {[%emt 0:00:05]} 1/2-1/2